[Event "Turkish Club Cup 2019"]
[Site "Konya"]
[Date "2019.07.18"]
[Round "4"]
[White "Ergonen, Arda"]
[Black "Kinsiz, Onur"]
[Result "1/2-1/2"]
[ECO "B32"]
[WhiteElo "1905"]
[BlackElo "2210"]
[Annotator "NA"]
[PlyCount "62"]
[EventDate "2019.07.16"]
[EventType "team-tourn"]
[EventCountry "TUR"]
[SourceTitle "playchess.com"]
[Source "ChessBase"]
[SourceQuality "1"]
[TimeControl "5400+30"]

1. e4 {[%emt 0:00:30]} c5 {[%emt 0:00:30]} 2. Nf3 {[%emt 0:00:30]} Nc6 {[%emt 0:00:00]} 3. d4 {[%emt 0:00:00]} cxd4 {[%emt 0:00:00]} 4. Nxd4 {[%emt 0:00:00]} e5 {[%emt 0:00:30]} 5. Nb5 {[%emt 0:00:00]} d6 {[%emt 0:00:00]} 6. a4 {[%emt 0:02:00]} Be6 {[%emt 0:11:00]} 7. N1c3 {[%emt 0:04:30]} a6 {[%emt 0:09:30]} 8. Na3 {[%emt 0:00:30]} Rc8 {[%emt 0:00:00]} 9. Nc4 {[%emt 0:11:30]} Nd4 {[%emt 0:29:00]} 10. Nd5 {[%emt 0:01:30]} Nf6 {[%emt 0:02:30]} 11. Bg5 {[%emt 0:06:30]} Bxd5 {[%emt 0:02:30]} 12. exd5 {[%emt 0:00:30]} Be7 {[%emt 0:00:30]} 13. c3 {[%emt 0:05:30]} Nf5 {[%emt 0:01:30]} 14. g4 {[%emt 0:00:30]} Nh6 {[%emt 0:02:30]} 15. Bxh6 {[%emt 0:00:30]} gxh6 {[%emt 0:00:00]} 16. Ne3 {[%emt 0:01:30]} Rg8 {[%emt 0:11:00]} 17. Be2 {[%emt 0:01:30]} Qb6 {[%emt 0:03:30]} 18. Rb1 {[%emt 0:07:30]} Nd7 {[%emt 0:00:30]} 19. h4 {[%emt 0:12:30]} Nf8 {[%emt 0:01:30]} 20. Nf5 {[%emt 0:01:30]} Ng6 {[%emt 0:02:30]} 21. Nxh6 {[%emt 0:01:30]} Rf8 {[%emt 0:01:30]} 22. Nf5 {[%emt 0:04:30]} Nf4 {[%emt 0:01:17]} 23. Bf3 {[%emt 0:06:30]} Qc5 {[%emt 0:03:47]} 24. Be4 {[%emt 0:02:30]} Qc4 {[%emt 0:03:06]} 25. f3 {[%emt 0:01:30]} Qc5 {[%emt 0:06:49]} 26. Qd2 {[%emt 0:02:30]} Rc7 {[%emt 0:01:01]} 27. Rc1 {[%emt 0:01:30]} a5 {[%emt 0:03:34]} 28. b3 {[%emt 0:05:47]} Qb6 {[%emt 0:00:39]} 29. Rb1 {[%emt 0:01:04]} Kd8 {[%emt 0:00:19]} 30. c4 {[%emt 0:01:01]} Kc8 {[%emt 0:00:29]} 31. Qf2 {[%emt 0:00:43]} Qb4+ {[%emt 0:00:55]} 1/2-1/2

[Event "Turkish Club Cup 2019"]
[Site "Konya"]
[Date "2019.07.18"]
[Round "4"]
[White "Severcan, Sedat Sabri"]
[Black "Guner, Sati Emre"]
[Result "1/2-1/2"]
[ECO "D73"]
[WhiteElo "1885"]
[BlackElo "1912"]
[Annotator "NA RC"]
[PlyCount "76"]
[EventDate "2019.07.16"]
[EventType "team-tourn"]
[EventCountry "TUR"]
[SourceTitle "playchess.com"]
[Source "ChessBase"]
[SourceQuality "1"]
[TimeControl "5400+30"]

1. d4 {[%emt 0:00:30]} d5 {[%emt 0:00:30]} 2. Nf3 {[%emt 0:00:30]} Nf6 {[%emt 0:00:00]} 3. c4 {[%emt 0:00:00]} c6 {[%emt 0:00:00]} 4. g3 {[%emt 0:00:00]} g6 {[%emt 0:00:30]} 5. Bg2 {[%emt 0:00:30]} Bg7 {[%emt 0:00:30]} 6. O-O {[%emt 0:00:30]} dxc4 {[%emt 0:00:30]} 7. a4 {[%emt 0:01:30]} O-O {[%emt 0:00:00]} 8. Qc2 {[%emt 0:00:30]} a5 {[%emt 0:04:00]} 9. Na3 {[%emt 0:04:30]} Bf5 {[%emt 0:03:30]} 10. Qxc4 {[%emt 0:03:30]} Na6 {[%emt 0:00:30]} 11. Ne5 {[%emt 0:09:30]} Nb4 {[%emt 0:02:30]} 12. Bf4 {[%emt 0:08:30]} Be6 {[%emt 0:05:30]} 13. Qc5 {[%emt 0:08:30]} b6 {[%emt 0:05:30]} 14. Qc1 {[%emt 0:02:30]} Rc8 {[%emt 0:03:30]} 15. Nf3 {[%emt 0:12:30]} Bd5 {[%emt 0:12:30]} 16. Qd1 {[%emt 0:04:30]} c5 {[%emt 0:07:30]} 17. dxc5 {[%emt 0:01:30]} Rxc5 {[%emt 0:00:30]} 18. Be3 {[%emt 0:01:30]} Rc6 {[%emt 0:05:30]} 19. Rc1 {[%emt 0:12:30]} Rd6 {[%emt 0:00:30]} 20. Qe1 {[%emt 0:02:30]} Ng4 {[%emt 0:02:30]} 21. Bf4 {[%emt 0:03:30]} e5 {[%emt 0:11:30]} 22. Bg5 {[%emt 0:01:30]} f6 {[%emt 0:00:30]} 23. Bd2 {[%emt 0:01:34]} Bxf3 {[%emt 0:02:30]} 24. Bxf3 {[%emt 0:00:27]} Rxd2 {[%emt 0:05:30]} 25. Bxg4 {[%emt 0:01:35]} f5 {[%emt 0:00:30]} 26. Nc4 {[%emt 0:01:03]} Rc2 {[%emt 0:03:30]} 27. Bh3 {[%emt 0:03:41]} Qc7 {[%emt 0:02:30]} 28. b3 {[%emt 0:01:48]} e4 {[%emt 0:01:30]} 29. Rxc2 {[%emt 0:01:29]} Nxc2 {[%emt 0:00:00]} 30. Qb1 {[%emt 0:01:17]} Nd4 {[%emt 0:00:00]} 31. Re1 {[%emt 0:00:22]} Rc8 {[%emt 0:00:30]} 32. Bg2 {[%emt 0:01:11]} Nxb3 {[%emt 0:05:59]} 33. Nd6 {[%emt 0:04:00]} Qxd6 {[%emt 0:03:34]} 34. Qxb3+ {[%emt 0:00:30]} Kh8 {[%emt 0:00:00]} 35. Rd1 {[%emt 0:00:35]} Qf6 {[%emt 0:01:48]} 36. e3 {[%emt 0:00:30]} Rd8 {[%emt 0:02:05]} 37. Rxd8+ {[%emt 0:00:52]} Qxd8 {[%emt 0:00:05]} 38. Bf1 {[%emt 0:00:09]} h5 {[%emt 0:01:07]} 1/2-1/2

[Event "Turkish Club Cup 2019"]
[Site "Konya"]
[Date "2019.07.18"]
[Round "4"]
[White "Oluc, Hakan"]
[Black "Basaran, Alp"]
[Result "1-0"]
[ECO "A36"]
[WhiteElo "1881"]
[BlackElo "1857"]
[Annotator "NA RC"]
[PlyCount "103"]
[EventDate "2019.07.16"]
[EventType "team-tourn"]
[EventCountry "TUR"]
[SourceTitle "playchess.com"]
[Source "ChessBase"]
[SourceQuality "1"]
[TimeControl "5400+30"]

1. c4 {[%emt 0:00:30]} Nf6 {[%emt 0:00:30]} 2. g3 {[%emt 0:00:30]} g6 {[%emt 0:00:30]} 3. Bg2 {[%emt 0:00:30]} Bg7 {[%emt 0:00:00]} 4. Nc3 {[%emt 0:00:00]} O-O {[%emt 0:00:00]} 5. e4 {[%emt 0:00:00]} d6 {[%emt 0:00:00]} 6. Nge2 {[%emt 0:00:30]} c5 {[%emt 0:00:00]} 7. O-O {[%emt 0:00:30]} Nc6 {[%emt 0:05:30]} 8. d3 {[%emt 0:00:00]} a6 {[%emt 0:00:30]} 9. h3 {[%emt 0:01:00]} Rb8 {[%emt 0:00:30]} 10. a4 {[%emt 0:00:30]} Ne8 {[%emt 0:00:30]} 11. Be3 {[%emt 0:00:30]} Nc7 {[%emt 0:00:30]} 12. d4 {[%emt 0:00:30]} cxd4 {[%emt 0:00:30]} 13. Nxd4 {[%emt 0:00:30]} Ne6 {[%emt 0:00:30]} 14. Nde2 {[%emt 0:00:30]} Na5 {[%emt 0:02:30]} 15. b3 {[%emt 0:02:30]} b5 {[%emt 0:24:30]} 16. axb5 {[%emt 0:11:30]} axb5 {[%emt 0:00:30]} 17. cxb5 {[%emt 0:05:30]} Bd7 {[%emt 0:02:30]} 18. b6 {[%emt 0:05:30]} Nc6 {[%emt 0:02:30]} 19. Rb1 {[%emt 0:19:30]} Nb4 {[%emt 0:10:30]} 20. Nd5 {[%emt 0:04:30]} Nxd5 {[%emt 0:08:30]} 21. exd5 {[%emt 0:06:30]} Nc5 {[%emt 0:00:30]} 22. b4 {[%emt 0:00:00]} Na4 {[%emt 0:00:30]} 23. Nd4 {[%emt 0:11:00]} Nc3 {[%emt 0:06:30]} 24. Qd2 {[%emt 0:20:36]} Nxb1 {[%emt 0:00:30]} 25. Rxb1 {[%emt 0:00:00]} Rxb6 {[%emt 0:00:00]} 26. Nc6 {[%emt 0:00:09]} Bxc6 {[%emt 0:03:00]} 27. Bxb6 {[%emt 0:00:12]} Qxb6 {[%emt 0:00:00]} 28. dxc6 {[%emt 0:00:02]} Be5 {[%emt 0:06:00]} 29. Kh2 {[%emt 0:00:42]} h5 {[%emt 0:01:30]} 30. f4 {[%emt 0:00:28]} Bf6 {[%emt 0:01:30]} 31. h4 {[%emt 0:01:13]} Rd8 {[%emt 0:01:30]} 32. Qd5 {[%emt 0:02:42]} Ra8 {[%emt 0:04:45]} 33. Rc1 {[%emt 0:01:39]} Qc7 {[%emt 0:01:18]} 34. f5 {[%emt 0:00:03]} Kg7 {[%emt 0:00:48]} 35. b5 {[%emt 0:01:41]} Be5 {[%emt 0:00:08]} 36. fxg6 {[%emt 0:00:08]} e6 {[%emt 0:02:11]} 37. Qb3 {[%emt 0:01:16]} Qe7 {[%emt 0:01:34]} 38. Kh1 {[%emt 0:02:20]} d5 {[%emt 0:00:30]} 39. c7 {[%emt 0:01:45]} Bxc7 {[%emt 0:01:55]} 40. Qc3+ {[%emt 0:00:26]} Kxg6 {[%emt 0:01:45]} 41. Qxc7 {[%emt 0:00:30]} Qxc7 {[%emt 0:00:00]} 42. Rxc7 {[%emt 0:00:07]} Ra1+ {[%emt 0:00:17]} 43. Kh2 {[%emt 0:00:30]} Rb1 {[%emt 0:00:00]} 44. Rb7 {[%emt 0:01:18]} Kf6 {[%emt 0:00:16]} 45. Bf3 {[%emt 0:00:09]} d4 {[%emt 0:00:02]} 46. Bxh5 {[%emt 0:00:41]} d3 {[%emt 0:00:15]} 47. Rxf7+ {[%emt 0:00:10]} Ke5 {[%emt 0:00:04]} 48. Rd7 {[%emt 0:00:02]} Rxb5 {[%emt 0:00:55]} 49. Rxd3 {[%emt 0:00:40]} Kf6 {[%emt 0:00:08]} 50. Bg4 {[%emt 0:00:40]} e5 {[%emt 0:00:39]} 51. Rd6+ {[%emt 0:01:04]} Kg7 {[%emt 0:00:11]} 52. Bf5 {[%emt 0:00:00]} 1-0

[Event "Turkish Club Cup 2019"]
[Site "Konya"]
[Date "2019.07.18"]
[Round "4"]
[White "Atas, Yunus"]
[Black "Sancar, Alperen"]
[Result "1-0"]
[ECO "D47"]
[WhiteElo "1876"]
[BlackElo "1479"]
[Annotator "NA RC"]
[PlyCount "51"]
[EventDate "2019.07.16"]
[EventType "team-tourn"]
[EventCountry "TUR"]
[SourceTitle "playchess.com"]
[Source "ChessBase"]
[SourceQuality "1"]
[TimeControl "5400+30"]

1. Nf3 {[%emt 0:00:30]} Nf6 {[%emt 0:00:30]} 2. c4 {[%emt 0:00:00]} e6 {[%emt 0:06:30]} 3. d4 {[%emt 0:03:00]} d5 {[%emt 0:00:30]} 4. Nc3 {[%emt 0:00:30]} c6 {[%emt 0:00:30]} 5. e3 {[%emt 0:00:00]} Nbd7 {[%emt 0:01:30]} 6. Bd3 {[%emt 0:00:00]} dxc4 {[%emt 0:03:30]} 7. Bxc4 {[%emt 0:00:30]} Nb6 {[%emt 0:04:30]} 8. Bd3 {[%emt 0:00:30]} Be7 {[%emt 0:01:30]} 9. O-O {[%emt 0:00:00]} O-O {[%emt 0:00:00]} 10. Qe2 {[%emt 0:00:00]} Re8 {[%emt 0:03:00]} 11. Rd1 {[%emt 0:06:30]} Qc7 {[%emt 0:07:30]} 12. e4 {[%emt 0:01:30]} Nbd7 {[%emt 0:04:30]} 13. e5 {[%emt 0:02:30]} Nd5 {[%emt 0:01:30]} 14. Ne4 {[%emt 0:00:30]} Nf8 {[%emt 0:02:30]} 15. Bd2 {[%emt 0:02:30]} Ng6 {[%emt 0:07:30]} 16. g3 {[%emt 0:00:00]} Qb6 {[%emt 0:02:30]} 17. a3 {[%emt 0:11:00]} c5 {[%emt 0:03:30]} 18. dxc5 {[%emt 0:05:30]} Bxc5 {[%emt 0:00:30]} 19. Nxc5 {[%emt 0:02:30]} Qxc5 {[%emt 0:00:00]} 20. Ng5 {[%emt 0:01:30]} Qb6 {[%emt 0:08:00]} 21. Qh5 {[%emt 0:06:30]} Nxe5 {[%emt 0:10:30]} 22. Qxh7+ {[%emt 0:10:30]} Kf8 {[%emt 0:00:30]} 23. Be4 {[%emt 0:04:30]} Nc6 {[%emt 0:12:54]} 24. Qh8+ {[%emt 0:01:30]} Ke7 {[%emt 0:00:07]} 25. Qxg7 {[%emt 0:00:00]} Rf8 {[%emt 0:06:54]} 26. Bxd5 {[%emt 0:00:00]} 1-0

[Event "Turkish Club Cup 2019"]
[Site "Konya"]
[Date "2019.07.18"]
[Round "4"]
[White "Subasi, Cagrican"]
[Black "Cakir, Ege"]
[Result "1/2-1/2"]
[ECO "E42"]
[WhiteElo "1871"]
[BlackElo "1765"]
[Annotator "NA RC"]
[PlyCount "115"]
[EventDate "2019.07.16"]
[EventType "team-tourn"]
[EventCountry "TUR"]
[SourceTitle "playchess.com"]
[Source "ChessBase"]
[SourceQuality "1"]
[TimeControl "5400+30"]

1. d4 {[%emt 0:00:30]} Nf6 {[%emt 0:00:30]} 2. c4 {[%emt 0:00:30]} e6 {[%emt 0:00:00]} 3. Nc3 {[%emt 0:00:00]} Bb4 {[%emt 0:00:00]} 4. e3 {[%emt 0:00:00]} c5 {[%emt 0:00:00]} 5. Nge2 {[%emt 0:00:30]} cxd4 {[%emt 0:00:00]} 6. exd4 {[%emt 0:00:00]} O-O {[%emt 0:00:30]} 7. a3 {[%emt 0:00:00]} Be7 {[%emt 0:00:00]} 8. g3 {[%emt 0:11:30]} d5 {[%emt 0:05:00]} 9. cxd5 {[%emt 0:15:30]} Nxd5 {[%emt 0:00:30]} 10. Bg2 {[%emt 0:00:30]} Nxc3 {[%emt 0:09:30]} 11. bxc3 {[%emt 0:02:30]} Nc6 {[%emt 0:04:30]} 12. a4 {[%emt 0:15:30]} Qc7 {[%emt 0:04:30]} 13. Bf4 {[%emt 0:03:30]} Bd6 {[%emt 0:00:30]} 14. Bxd6 {[%emt 0:00:30]} Qxd6 {[%emt 0:00:30]} 15. a5 {[%emt 0:00:30]} e5 {[%emt 0:03:30]} 16. d5 {[%emt 0:20:30]} Ne7 {[%emt 0:01:30]} 17. O-O {[%emt 0:04:30]} Bg4 {[%emt 0:05:30]} 18. h3 {[%emt 0:01:30]} Bh5 {[%emt 0:01:30]} 19. g4 {[%emt 0:00:30]} Bg6 {[%emt 0:00:30]} 20. Ng3 {[%emt 0:00:30]} e4 {[%emt 0:08:30]} 21. Nxe4 {[%emt 0:03:47]} Bxe4 {[%emt 0:05:30]} 22. Bxe4 {[%emt 0:00:06]} f5 {[%emt 0:06:30]} 23. gxf5 {[%emt 0:00:01]} Nxf5 {[%emt 0:00:00]} 24. Qd3 {[%emt 0:01:01]} Nh4 {[%emt 0:05:00]} 25. Ra4 {[%emt 0:00:13]} g6 {[%emt 0:06:30]} 26. Qg3 {[%emt 0:03:13]} Qd7 {[%emt 0:03:30]} 27. Rb4 {[%emt 0:01:12]} Nf5 {[%emt 0:00:30]} 28. Qg4 {[%emt 0:01:15]} Qc7 {[%emt 0:01:30]} 29. d6 {[%emt 0:00:34]} Qxd6 {[%emt 0:08:40]} 30. Rxb7 {[%emt 0:05:36]} Rae8 {[%emt 0:02:04]} 31. Bxf5 {[%emt 0:03:08]} Rxf5 {[%emt 0:00:17]} 32. Rxa7 {[%emt 0:00:23]} Qc5 {[%emt 0:00:48]} 33. Qd4 {[%emt 0:00:45]} Rg5+ {[%emt 0:01:41]} 34. Kh2 {[%emt 0:00:10]} Qxd4 {[%emt 0:00:54]} 35. cxd4 {[%emt 0:00:04]} Re2 {[%emt 0:00:44]} 36. a6 {[%emt 0:01:15]} Rf5 {[%emt 0:02:29]} 37. Rb7 {[%emt 0:00:34]} Ra2 {[%emt 0:02:35]} 38. a7 {[%emt 0:03:10]} Rf7 {[%emt 0:00:45]} 39. Rb8+ {[%emt 0:00:38]} Rf8 {[%emt 0:00:05]} 40. Kg3 {[%emt 0:01:53]} Rxa7 {[%emt 0:00:37]} 41. Rxf8+ {[%emt 0:00:30]} Kxf8 {[%emt 0:00:00]} 42. Kf4 {[%emt 0:01:28]} Ke7 {[%emt 0:01:08]} 43. Rc1 {[%emt 0:00:54]} Ra2 {[%emt 0:01:21]} 44. Rc7+ {[%emt 0:00:17]} Kd6 {[%emt 0:01:09]} 45. Rxh7 {[%emt 0:00:30]} Rxf2+ {[%emt 0:00:00]} 46. Ke3 {[%emt 0:00:47]} Ra2 {[%emt 0:02:45]} 47. Kf4 {[%emt 0:00:32]} Rd2 {[%emt 0:01:08]} 48. Ke3 {[%emt 0:00:19]} Ra2 {[%emt 0:00:00]} 49. Rg7 {[%emt 0:00:16]} Kd5 {[%emt 0:01:35]} 50. Rd7+ {[%emt 0:00:30]} Ke6 {[%emt 0:00:39]} 51. Rh7 {[%emt 0:00:15]} Kd5 {[%emt 0:00:00]} 52. Kf4 {[%emt 0:00:30]} Kxd4 {[%emt 0:00:56]} 53. Rd7+ {[%emt 0:00:30]} Kc5 {[%emt 0:00:00]} 54. Rd3 {[%emt 0:00:38]} Rg2 {[%emt 0:03:38]} 55. h4 {[%emt 0:00:30]} Rf2+ {[%emt 0:00:30]} 56. Kg3 {[%emt 0:00:30]} Rf1 {[%emt 0:00:00]} 57. Ra3 {[%emt 0:00:00]} Kd5 {[%emt 0:00:19]} 58. Ra6 {[%emt 0:00:29]} 1/2-1/2

[Event "Turkish Club Cup 2019"]
[Site "Konya"]
[Date "2019.07.18"]
[Round "4"]
[White "Iyiol, Mehmet"]
[Black "Ekici, Caner"]
[Result "1-0"]
[ECO "E69"]
[WhiteElo "1857"]
[BlackElo "1650"]
[Annotator "NA"]
[PlyCount "75"]
[EventDate "2019.07.16"]
[EventType "team-tourn"]
[EventCountry "TUR"]
[SourceTitle "playchess.com"]
[Source "ChessBase"]
[SourceQuality "1"]
[TimeControl "5400+30"]

1. c4 {[%emt 0:00:30]} g6 {[%emt 0:00:30]} 2. Nf3 {[%emt 0:00:00]} Bg7 {[%emt 0:00:00]} 3. d4 {[%emt 0:01:00]} c6 {[%emt 0:00:00]} 4. Nc3 {[%emt 0:00:30]} d6 {[%emt 0:02:30]} 5. g3 {[%emt 0:01:30]} Nf6 {[%emt 0:01:30]} 6. Bg2 {[%emt 0:00:30]} O-O {[%emt 0:00:30]} 7. O-O {[%emt 0:00:30]} Qc7 {[%emt 0:01:30]} 8. h3 {[%emt 0:00:30]} Nbd7 {[%emt 0:04:30]} 9. e4 {[%emt 0:01:30]} e5 {[%emt 0:02:30]} 10. Be3 {[%emt 0:02:30]} b6 {[%emt 0:05:30]} 11. Qc2 {[%emt 0:07:30]} Bb7 {[%emt 0:03:30]} 12. Rad1 {[%emt 0:01:30]} Rac8 {[%emt 0:03:30]} 13. dxe5 {[%emt 0:03:30]} dxe5 {[%emt 0:00:30]} 14. Rd2 {[%emt 0:04:30]} Rfd8 {[%emt 0:11:30]} 15. Rfd1 {[%emt 0:05:30]} Ne8 {[%emt 0:01:30]} 16. Qa4 {[%emt 0:05:30]} h6 {[%emt 0:14:30]} 17. h4 {[%emt 0:05:30]} Ra8 {[%emt 0:27:10]} 18. Bh3 {[%emt 0:00:30]} Bc8 {[%emt 0:02:09]} 19. Qc2 {[%emt 0:04:30]} a6 {[%emt 0:03:51]} 20. Na4 {[%emt 0:08:30]} c5 {[%emt 0:08:41]} 21. Bxd7 {[%emt 0:07:30]} Bxd7 {[%emt 0:00:33]} 22. Rxd7 {[%emt 0:00:30]} Rxd7 {[%emt 0:00:02]} 23. Rxd7 {[%emt 0:00:30]} Qxd7 {[%emt 0:00:03]} 24. Nxb6 {[%emt 0:00:00]} Qc6 {[%emt 0:01:40]} 25. Nxa8 {[%emt 0:00:00]} Qxa8 {[%emt 0:00:00]} 26. Bxc5 {[%emt 0:00:30]} Qc6 {[%emt 0:00:00]} 27. b4 {[%emt 0:00:30]} Nc7 {[%emt 0:00:12]} 28. Be3 {[%emt 0:02:30]} Ne6 {[%emt 0:00:37]} 29. a4 {[%emt 0:00:30]} Nd4 {[%emt 0:00:24]} 30. Bxd4 {[%emt 0:00:30]} exd4 {[%emt 0:00:02]} 31. b5 {[%emt 0:00:30]} axb5 {[%emt 0:00:30]} 32. axb5 {[%emt 0:00:00]} Qc5 {[%emt 0:00:14]} 33. Qd3 {[%emt 0:00:00]} Kf8 {[%emt 0:00:22]} 34. Qb3 {[%emt 0:02:30]} Qc8 {[%emt 0:04:04]} 35. b6 {[%emt 0:00:30]} Qb7 {[%emt 0:01:20]} 36. c5 {[%emt 0:00:30]} Ke8 {[%emt 0:01:17]} 37. c6 {[%emt 0:00:30]} Qb8 {[%emt 0:00:39]} 38. b7 {[%emt 0:00:30]} 1-0

[Event "Turkish Club Cup 2019"]
[Site "Konya"]
[Date "2019.07.18"]
[Round "4"]
[White "Yorgun, Yaren Naz"]
[Black "Ozgur, Sina"]
[Result "1/2-1/2"]
[ECO "C47"]
[WhiteElo "1819"]
[BlackElo "1524"]
[Annotator "NA RC"]
[PlyCount "64"]
[EventDate "2019.07.16"]
[EventType "team-tourn"]
[EventCountry "TUR"]
[SourceTitle "playchess.com"]
[Source "ChessBase"]
[SourceQuality "1"]
[TimeControl "5400+30"]

1. e4 {[%emt 0:00:30]} e5 {[%emt 0:00:30]} 2. Nf3 {[%emt 0:00:00]} Nc6 {[%emt 0:00:30]} 3. Nc3 {[%emt 0:00:00]} Nf6 {[%emt 0:00:00]} 4. d4 {[%emt 0:00:00]} exd4 {[%emt 0:00:00]} 5. Nxd4 {[%emt 0:00:00]} Bb4 {[%emt 0:00:00]} 6. Nxc6 {[%emt 0:00:30]} bxc6 {[%emt 0:00:00]} 7. Bd3 {[%emt 0:00:00]} d5 {[%emt 0:00:00]} 8. exd5 {[%emt 0:00:00]} O-O {[%emt 0:00:00]} 9. O-O {[%emt 0:00:30]} cxd5 {[%emt 0:00:30]} 10. h3 {[%emt 0:00:00]} c6 {[%emt 0:00:00]} 11. Qf3 {[%emt 0:01:00]} Be6 {[%emt 0:01:00]} 12. Ne2 {[%emt 0:04:30]} Be7 {[%emt 0:08:30]} 13. Bf4 {[%emt 0:02:30]} c5 {[%emt 0:03:30]} 14. c3 {[%emt 0:03:30]} a5 {[%emt 0:13:30]} 15. Ng3 {[%emt 0:07:30]} Qd7 {[%emt 0:06:30]} 16. Be5 {[%emt 0:08:30]} Rad8 {[%emt 0:16:30]} 17. Rfd1 {[%emt 0:05:30]} Qa7 {[%emt 0:10:30]} 18. Nf5 {[%emt 0:11:30]} Bxf5 {[%emt 0:07:30]} 19. Qxf5 {[%emt 0:04:30]} g6 {[%emt 0:01:30]} 20. Qf3 {[%emt 0:07:30]} Qb6 {[%emt 0:02:30]} 21. b3 {[%emt 0:04:30]} Ne8 {[%emt 0:09:01]} 22. Bc2 {[%emt 0:03:30]} d4 {[%emt 0:02:28]} 23. cxd4 {[%emt 0:02:30]} cxd4 {[%emt 0:00:26]} 24. Bf4 {[%emt 0:04:30]} Bf6 {[%emt 0:01:29]} 25. Bd3 {[%emt 0:00:30]} Ng7 {[%emt 0:04:43]} 26. Rac1 {[%emt 0:05:30]} Rc8 {[%emt 0:00:52]} 27. Bc4 {[%emt 0:00:30]} Nf5 {[%emt 0:02:04]} 28. Qg4 {[%emt 0:16:13]} Rc6 {[%emt 0:04:10]} 29. Bd3 {[%emt 0:00:47]} Ne7 {[%emt 0:00:35]} 30. Be4 {[%emt 0:01:31]} Rxc1 {[%emt 0:03:35]} 31. Rxc1 {[%emt 0:00:10]} Qb4 {[%emt 0:00:35]} 32. h4 {[%emt 0:04:13]} Rd8 {[%emt 0:00:38]} 1/2-1/2

[Event "Turkish Club Cup 2019"]
[Site "Konya"]
[Date "2019.07.18"]
[Round "4"]
[White "Aslan, Dogukan"]
[Black "Ozdover, Mustafa Berkay"]
[Result "1/2-1/2"]
[ECO "E62"]
[WhiteElo "1806"]
[BlackElo "2130"]
[Annotator "NA"]
[PlyCount "70"]
[EventDate "2019.07.16"]
[EventType "team-tourn"]
[EventCountry "TUR"]
[SourceTitle "playchess.com"]
[Source "ChessBase"]
[SourceQuality "1"]
[TimeControl "5400+30"]

1. d4 {[%emt 0:00:30]} Nf6 {[%emt 0:01:30]} 2. c4 {[%emt 0:00:00]} g6 {[%emt 0:00:30]} 3. Nf3 {[%emt 0:01:00]} Bg7 {[%emt 0:00:30]} 4. g3 {[%emt 0:00:30]} d6 {[%emt 0:08:30]} 5. Bg2 {[%emt 0:00:30]} O-O {[%emt 0:00:30]} 6. O-O {[%emt 0:00:30]} c6 {[%emt 0:02:30]} 7. Nc3 {[%emt 0:01:30]} Qa5 {[%emt 0:04:30]} 8. e4 {[%emt 0:07:30]} Qh5 {[%emt 0:02:30]} 9. Ng5 {[%emt 0:05:30]} Qxd1 {[%emt 0:23:30]} 10. Rxd1 {[%emt 0:00:00]} Nbd7 {[%emt 0:06:30]} 11. f4 {[%emt 0:10:00]} c5 {[%emt 0:08:30]} 12. e5 {[%emt 0:07:30]} cxd4 {[%emt 0:00:00]} 13. exf6 {[%emt 0:00:30]} exf6 {[%emt 0:00:00]} 14. Nge4 {[%emt 0:02:30]} dxc3 {[%emt 0:01:30]} 15. Nxc3 {[%emt 0:00:30]} Nb6 {[%emt 0:07:30]} 16. b3 {[%emt 0:02:30]} f5 {[%emt 0:00:30]} 17. Bb2 {[%emt 0:00:00]} Rd8 {[%emt 0:06:30]} 18. c5 {[%emt 0:02:00]} Nd7 {[%emt 0:01:30]} 19. cxd6 {[%emt 0:00:30]} Nc5 {[%emt 0:00:30]} 20. Rab1 {[%emt 0:01:30]} Be6 {[%emt 0:03:40]} 21. b4 {[%emt 0:06:30]} Ne4 {[%emt 0:00:53]} 22. Nxe4 {[%emt 0:01:30]} fxe4 {[%emt 0:00:02]} 23. Bxg7 {[%emt 0:00:00]} Kxg7 {[%emt 0:00:03]} 24. Bxe4 {[%emt 0:00:00]} Bxa2 {[%emt 0:00:17]} 25. Rb2 {[%emt 0:01:30]} Be6 {[%emt 0:01:19]} 26. Bxb7 {[%emt 0:00:30]} Rab8 {[%emt 0:00:03]} 27. Bf3 {[%emt 0:02:30]} Rb6 {[%emt 0:00:19]} 28. Rbd2 {[%emt 0:05:30]} Rxb4 {[%emt 0:00:12]} 29. Rd4 {[%emt 0:00:30]} Rb6 {[%emt 0:01:26]} 30. Ra1 {[%emt 0:00:30]} Rbxd6 {[%emt 0:03:33]} 31. Rxd6 {[%emt 0:00:30]} Rxd6 {[%emt 0:00:00]} 32. Rxa7 {[%emt 0:00:30]} Rd2 {[%emt 0:01:02]} 33. Ra1 {[%emt 0:00:30]} h6 {[%emt 0:02:19]} 34. Rd1 {[%emt 0:00:00]} Rb2 {[%emt 0:00:38]} 35. Bg2 {[%emt 0:00:00]} h5 {[%emt 0:00:57]} 1/2-1/2

[Event "Turkish Club Cup 2019"]
[Site "Konya"]
[Date "2019.07.18"]
[Round "4"]
[White "Gundogan, Sinem Cagla"]
[Black "Ultanir, Guray"]
[Result "1-0"]
[ECO "B15"]
[WhiteElo "1806"]
[BlackElo "1601"]
[Annotator "NA"]
[PlyCount "55"]
[EventDate "2019.07.16"]
[EventType "team-tourn"]
[EventCountry "TUR"]
[SourceTitle "playchess.com"]
[Source "ChessBase"]
[SourceQuality "1"]
[TimeControl "5400+30"]

1. e4 {[%emt 0:00:30]} c6 {[%emt 0:00:30]} 2. d4 {[%emt 0:00:00]} g6 {[%emt 0:00:00]} 3. Nc3 {[%emt 0:01:00]} Bg7 {[%emt 0:00:00]} 4. Be3 {[%emt 0:00:00]} d5 {[%emt 0:00:30]} 5. f3 {[%emt 0:04:00]} dxe4 {[%emt 0:01:30]} 6. fxe4 {[%emt 0:00:30]} Nf6 {[%emt 0:00:00]} 7. Be2 {[%emt 0:00:30]} O-O {[%emt 0:08:00]} 8. Nf3 {[%emt 0:02:30]} Qa5 {[%emt 0:11:30]} 9. O-O {[%emt 0:13:30]} Ng4 {[%emt 0:02:30]} 10. Qd2 {[%emt 0:14:30]} Nxe3 {[%emt 0:01:30]} 11. Qxe3 {[%emt 0:00:00]} Bg4 {[%emt 0:04:30]} 12. e5 {[%emt 0:12:00]} h6 {[%emt 0:18:30]} 13. Bc4 {[%emt 0:03:30]} Kh7 {[%emt 0:19:30]} 14. Bxf7 {[%emt 0:12:30]} Rxf7 {[%emt 0:01:30]} 15. Ng5+ {[%emt 0:00:00]} hxg5 {[%emt 0:00:00]} 16. Rxf7 {[%emt 0:00:00]} Qd8 {[%emt 0:10:37]} 17. Qxg5 {[%emt 0:04:30]} Qxd4+ {[%emt 0:00:35]} 18. Kh1 {[%emt 0:00:00]} Nd7 {[%emt 0:02:35]} 19. Rf4 {[%emt 0:02:00]} Qxe5 {[%emt 0:03:03]} 20. Qxg4 {[%emt 0:00:30]} Nf6 {[%emt 0:00:41]} 21. Qh4+ {[%emt 0:00:30]} Kg8 {[%emt 0:00:35]} 22. Re1 {[%emt 0:00:30]} Qc5 {[%emt 0:02:08]} 23. Qh3 {[%emt 0:05:30]} Qd6 {[%emt 0:02:46]} 24. Rff1 {[%emt 0:03:30]} e5 {[%emt 0:02:10]} 25. Qg3 {[%emt 0:01:09]} Nh5 {[%emt 0:00:51]} 26. Qg4 {[%emt 0:01:14]} Rf8 {[%emt 0:01:45]} 27. Ne4 {[%emt 0:03:17]} Qd4 {[%emt 0:02:37]} 28. Rxf8+ {[%emt 0:03:48]} 1-0